Cogmind - Beta 12 @@@ ROGUE MODE // 2023.08.20 @ 09:56:07 Player: art-hropod Result: Destroyed by S-10 Pest with Light Assault Rifle Performance ------------- Evolutions (1) 500 Regions Visited (3) 600 Robots Destroyed (51) 255 Value Destroyed (1068) 1068 Prototype IDs (2) 40 Alien Tech Used (0) 0 Bonus (21) 21 TOTAL SCORE: 2484 Bonus ------- High Alert Combat Kills 21 Cogmind --------- Core Integrity 0/400 Matter 283/300 Energy 72/100 System Corruption 4% Temperature Cool (0) Movement Walking (120) Location -9/Mines Parts ------- > --- POWER (1) -------- (None) > --- PROPULSION (4) --- Aluminum Leg > --- UTILITY (2) ------ Medium Storage Unit > --- WEAPON (2) ------- (None) > --- INVENTORY (10) --- Cooled Ion Engine VTOL Module Cesium-ion Thruster Cesium-ion Thruster Cesium-ion Thruster Cesium-ion Thruster Signal Interpreter Hacking Suite Hacking Suite Hacking Suite Peak State ------------ > --- POWER ------------ Light Nuclear Core > --- PROPULSION ------- Titanium Leg Titanium Leg Titanium Leg Titanium Leg > --- UTILITY ---------- Improved Heat Sink Medium Storage Unit > --- WEAPON ----------- High-powered Shotgun High-powered Shotgun > --- INVENTORY -------- Ion Engine VTOL Module VTOL Module VTOL Module VTOL Module VTOL Module Sensor Array Assault Rifle High-powered Shotgun Advanced EMP Blaster [Rating: 27] Favorites ----------- Power Light Nuclear Core Engine Light Ion Engine Power Core Light Nuclear Core Propulsion Titanium Leg Leg Titanium Leg Utility Medium Storage Unit Device Improved Heat Sink Storage Medium Storage Unit Processor Targeting Computer Weapon High-powered Shotgun Energy Gun Particle Gun Ballistic Gun High-powered Shotgun Launcher Advanced EMP Blaster Build | -11 -10 -9 -9 ------- Run | Jun Mat Mat Min Slots Evolved 2 | . . 2 . Power . | . . . . Propulsion 2 | . . 2 . Utility . | . . . . Weapon . | . . . . Parts Attached 43 | 5 10 28 . Power 9 | 1 1 7 . Engine 6 | 1 . 5 . Core 3 | . 1 2 . Reactor . | . . . . Propulsion 12 | 2 3 7 . Treads . | . . . . Leg 12 | 2 3 7 . Wheel . | . . . . Hover . | . . . . Flight . | . . . . Utility 5 | . 3 2 . Device 3 | . 1 2 . Storage 1 | . 1 . . Processor 1 | . 1 . . Hackware . | . . . . Protection . | . . . . Artifact . | . . . . Weapon 17 | 2 3 12 . Energy Gun 7 | 1 3 3 . Energy Cannon . | . . . . Ballistic Gun 6 | 1 . 5 . Ballistic Cannon . | . . . . Launcher 4 | . . 4 . Special Weapon . | . . . . Impact Weapon . | . . . . Slashing Weapon . | . . . . Piercing Weapon . | . . . . Special Melee Weapon . | . . . . Unidentified Prototypes 2 | . . 2 . Parts Lost 10 | . . 7 3 Power 2 | . . 2 . Propulsion 4 | . . 1 3 Utility 2 | . . 2 . Weapon 2 | . . 2 . Highest Loss Streak 4 | . . 4 2 To Critical Strikes . | . . . . Average Slot Usage (%) 94 | . 98 94 73 Engine 5 | . 8 4 8 Core 5 | . 5 6 . Leg 37 | . 28 42 31 Device 9 | . 12 8 8 Storage 11 | . 14 11 11 Energy Gun 8 | . 14 6 . Ballistic Gun 14 | . 14 14 8 Naked Turns . | . . . . Heaviest Build 28 | 6 20 28 28 Greatest Support 68 | 20 20 68 54 Greatest Overweight (x) 2 | . . . 2 Average Overweight (x) . | . . . . Largest Inventory Capacity 10 | 5 10 10 10 Average Capacity 9 | 5 9 10 10 Most Carried 10 | 5 10 10 10 Average Carried 9 | 2 9 9 10 Final Capacity 10 | 5 10 10 10 Final Carried 10 | 5 10 10 10 Class Distribution -------------------- 68% | Mutant 31% | Scavenger-Mutant Dominant Class ---------------- Mutant | -10/Materials Mutant | -9/Materials Mutant | -9/Mines Resources | -11 -10 -9 -9 ----------- Run | Jun Mat Mat Min Matter Collected 999 | 226 161 612 . Remotely . | . . . . Salvage Created 1491 | . 500 991 . Parts 127 | . 44 83 . Haulers Intercepted 6 | . 1 5 . Recyclers Shooed 2 | . . 2 . Parts Field Recycled . | . . . . Retrieved Matter . | . . . . Parts Self-Destructed . | . . . . Prevented . | . . . . Kills | -11 -10 -9 -9 ------- Run | Jun Mat Mat Min Combat Hostiles Destroyed 38 | . 13 25 . Guns 30 | . 13 17 . AOE 8 | . . 8 . Classes Destroyed 7 | . 5 2 . Hauler 6 | . 1 5 . Recycler 1 | . . 1 . Operator 2 | . 1 1 . Watcher 4 | . 2 2 . Swarmer 18 | . 6 12 . Grunt 15 | . 7 8 . Sentry 5 | . . 5 . Best Kill Streak 9 | . 9 9 . Combat Bots Only 8 | . 8 8 . Max Kills in Single Turn 3 | . 2 3 . Gunslinging . | . . . . Exploded 3 | . . 3 . Melee . | . . . . Uniques/NPCs Destroyed . | . . . . Combat | -11 -10 -9 -9 -------- Run | Jun Mat Mat Min Damage Taken 2395 | . 419 1289 687 Core 547 | . 142 177 228 Absorbed by Shields . | . . . . Core Remaining (%) 71 | 100 43 . . Volleys Fired 113 | . 47 62 4 Largest 2 | . 2 2 2 Hottest 101 | . 85 101 61 Shots Fired 219 | . 92 121 6 Gun 209 | . 92 113 4 Cannon . | . . . . Launcher 10 | . . 8 2 Special . | . . . . Kinetic 136 | . 47 85 4 Thermal 48 | . 20 28 . Explosive 6 | . . 6 . Electromagnetic 29 | . 25 2 2 Robot Hit Streak 20 | . 8 20 2 Robot Miss Streak 6 | . 6 6 3 Penetration Max . | . . . . Secondary Targets 6 | . 4 2 . Max Gunslinging Chain 1 | . 1 1 . Shots Hit Robots 135 | . 50 82 3 Core Hits 81 | . 27 54 . Critical Kills 1 | . . 1 . Critical Parts Destroyed . | . . . . Critical Strikes 2 | . 1 1 . Burn 1 | . 1 . . Destroy 1 | . . 1 . Melee Attacks . | . . . . Impact . | . . . . Slashing . | . . . . Piercing . | . . . . Sneak Attacks . | . . . . Combat Hostiles . | . . . . Follow-up Attacks . | . . . . Damage Inflicted 2393 | . 551 1710 132 Guns 1895 | . 551 1312 32 Cannons . | . . . . Explosions 488 | . . 398 90 Melee . | . . . . Ramming 10 | . . . 10 Kinetic 1357 | . 187 1138 32 Thermal 358 | . 184 174 . Explosive 220 | . . 220 . Electromagnetic 448 | . 180 178 90 Impact . | . . . . Slashing . | . . . . Piercing . | . . . . Highest Corruption 4 | . . 2 4 Average Corruption 2 | . . 2 3 Corruption Purged . | . . . . Corruption Blocked . | . . . . Effects 4 | . . 2 2 Message Errors 1 | . . . 1 Energy Discharges 3 | . . 2 1 Overload Shots . | . . . . Overflow Damage 18 | . . . 18 Projectiles . | . . . . Explosions 18 | . . . 18 Melee . | . . . . Knockbacks . | . . . . Impact . | . . . . Kinetic . | . . . . Secondary . | . . . . Self-Inflicted Damage 49 | . . . 49 Shots 2 | . . . 2 Rammed . | . . . . Targets Rammed 2 | . . . 2 Kicked 2 | . . . 2 Crushed . | . . . . Highest Temperature 68 | . 68 57 1 Average Temperature 18 | . 18 17 1 Received Heat Transfer 755 | . 159 456 140 Siege Activations . | . . . . Robots Corrupted . | . . . . Combat Hostiles . | . . . . Parts Fried . | . . . . Impact Corruptions . | . . . . Robots Melted . | . . . . Combat Hostiles . | . . . . Parts Melted 2 | . . 2 . Heat Transferred 929 | . 508 421 . Parts Sabotaged . | . . . . Parts Stolen . | . . . . Parts Stripped . | . . . . Power Chain Reactions . | . . . . Missiles Intercepted . | . . . . Alert | -11 -10 -9 -9 ------- Run | Jun Mat Mat Min Peak Influence 624 | . 329 624 205 Initial 205 | . . 63 205 Average 296 | . 175 383 193 Maximum Alert Level 2 | . 1 2 1 Low Security (%) 28 | 100 46 11 66 Level 1 43 | . 53 42 33 Level 2 28 | . . 46 . Level 3 . | . . . . Level 4 . | . . . . Level 5 . | . . . . High Security . | . . . . Max Security . | . . . . Squads Dispatched 4 | . 2 2 . Investigation 2 | . 1 1 . Extermination . | . . . . Reinforcement 2 | . 1 1 . Assault . | . . . . Garrison . | . . . . Intercept . | . . . . Searches Triggered . | . . . . Construction Impeded . | . . . . Haulers Reinforced . | . . . . Active Scanning Responses . | . . . . Cargo Convoy Interrupts . | . . . . Stealth | -11 -10 -9 -9 --------- Run | Jun Mat Mat Min Distress Signals 6 | . 2 4 . Communications Jammed . | . . . . Distress Signals . | . . . . Times Spotted 75 | . 17 38 20 Peak Tracking Total 13 | . 4 10 13 Tactical Retreats 3 | . . 1 2 Traps | -11 -10 -9 -9 ------- Run | Jun Mat Mat Min Traps Triggered 2 | . 1 1 . Indirectly . | . . . . Trap Hack Attempts . | . . . . Triggered . | . . . . Disarmed . | . . . . Reprogrammed . | . . . . Reused . | . . . . Traps Extracted . | . . . . Installed . | . . . . Triggered . | . . . . Machines | -11 -10 -9 -9 ---------- Run | Jun Mat Mat Min Machines Disabled . | . . . . Max in Single Turn . | . . . . Machines Repaired . | . . . . Machines Sabotaged . | . . . . Overloaded Fab Kills . | . . . . Hacking | -11 -10 -9 -9 --------- Run | Jun Mat Mat Min Machines Accessed 7 | . 2 5 . Terminals 6 | . 2 4 . Fabricators . | . . . . Repair Stations . | . . . . Recycling Units . | . . . . Scanalyzers 1 | . . 1 . Garrison Access . | . . . . Total Hacks 17 | . 6 11 . Successful 9 | . 4 5 . Failed 8 | . 2 6 . Catastrophic 1 | . . 1 . Database Lockouts . | . . . . Manual 12 | . 5 7 . Terminals 15 | . 6 9 . Fabricators . | . . . . Repair Stations . | . . . . Recycling Units . | . . . . Scanalyzers 2 | . . 2 . Garrison Access . | . . . . Terminal Hacks 4 | . 2 2 . Branch Access Points 1 | . 1 . . Scanalyzer Index 1 | . . 1 . Transport Status 1 | . 1 . . Hauler Manifests 1 | . . 1 . Fabricator Hacks . | . . . . Repair Station Hacks . | . . . . Recycling Unit Hacks . | . . . . Scanalyzer 2 | . . 2 . Insert Component 1 | . . 1 . Analyze 1 | . . 1 . Garrison Access Hacks . | . . . . Unauthorized Hacks 3 | . 2 1 . Terminals 3 | . 2 1 . Botnet 2 | . 2 . . Operators 1 | . . 1 . Fabricators . | . . . . Repair Stations . | . . . . Recycling Units . | . . . . Scanalyzers . | . . . . Garrison Access . | . . . . Data Cores Recovered . | . . . . Used . | . . . . Hacking Detections 6 | . 1 5 . Full Trace Events . | . . . . Feedback Events . | . . . . Feedback Blocked . | . . . . Robot Schematics Acquired . | . . . . Robots Built . | . . . . Authchips . | . . . . Time . | . . . . Total Robot Build Rating . | . . . . Part Schematics Acquired 1 | . . 1 . Parts Built . | . . . . Authchips . | . . . . Time . | . . . . Total Part Build Rating . | . . . . Parts Repaired . | . . . . Time . | . . . . Parts Recycled . | . . . . Recycled Matter . | . . . . Retrieved Matter . | . . . . Retrieved Components . | . . . . Parts Scanalyzed 1 | . . 1 . Part Schematics Acquired 1 | . . 1 . Parts Damaged . | . . . . Bothacking | -11 -10 -9 -9 ------------ Run | Jun Mat Mat Min Used RIF Installer . | . . . . Robots Hacked . | . . . . Non-combat . | . . . . Combat . | . . . . Robot Hacks Applied . | . . . . Relay Couplers Released . | . . . . Fabnet Peak Effective % . | . . . . Robots Rewired . | . . . . Allies Hacked . | . . . . Hacks Repelled . | . . . . Allies | -11 -10 -9 -9 -------- Run | Jun Mat Mat Min Total Allies . | . . . . Largest Group . | . . . . Highest-Rated Group . | . . . . Highest-Rated Ally . | . . . . Total Orders . | . . . . Ally Attacks . | . . . . Total Damage . | . . . . Kills . | . . . . Allies Corrupted . | . . . . Allies Melted . | . . . . Intel | -11 -10 -9 -9 ------- Run | Jun Mat Mat Min Robot Analysis Total . | . . . . Derelict Logs Recovered 1 | . . . 1 Drone Launches . | . . . . Drone Recoveries . | . . . . Exploration | -11 -10 -9 -9 ------------- Run | Jun Mat Mat Min Turns Passed 1606 | 72 461 992 81 Spaces Moved 914 | 52 230 579 53 Core 7 | 7 . . . Treads . | . . . . Legs 907 | 45 230 579 53 Wheels . | . . . . Hover . | . . . . Flight . | . . . . Fastest Speed 50 | 50 120 120 120 Average Speed 123 | 110 120 126 125 Slowest Speed 260 | 120 120 130 260 Overloaded Moves . | . . . . Propulsion Burnouts . | . . . . Robots Hopped . | . . . . Cave-ins Triggered . | . . . . Exploration Rate (%) 31 | 3 44 61 16 Regions Visited 3 Branch Regions 1 Pre-discovered Areas . | . . . . Known Exits Taken . | . . . . Unknown Exits Taken 3 | 1 1 1 . Scrap Searched . | . . . . Spaces Dug . | . . . . Terrain Destroyed 39 | . . 39 . Melee . | . . . . Projectile . | . . . . AOE 39 | . . 39 . Terrain Rammed . | . . . . Walls Destroyed . | . . . . Machines Disabled . | . . . . Actions | -11 -10 -9 -9 --------- Run | Jun Mat Mat Min Total 1188 | 66 336 724 62 Wait 21 | . 13 8 . Move 911 | 51 229 578 53 Hop . | . . . . Pick Up 58 | 10 21 27 . Fast Attach 6 | . 3 3 . Attach 24 | 5 2 17 . Detach . | . . . . Swap 13 | . 5 8 . Drop 40 | . 16 21 3 Fire 113 | . 47 62 4 Melee . | . . . . Ram . | . . . . Kick 2 | . . . 2 Crush . | . . . . Escape Stasis . | . . . . Rewire . | . . . . Trap . | . . . . Miscellaneous . | . . . . Route ------- -11/Junkyard -10/Materials (discovered 3 exits: *Mat / *Min x2) -9/Materials (discovered 2 exits: [*Min x2]) -9/Mines History --------- Turn | Location | Event 4 | -11/Junkyard | Discovered new exit (range 16) 73 | -11/Junkyard | Entered Materials 88 | -10/Materials | Identified exit to Mines 261 | -10/Materials | Destroyed 8 combat bots 307 | -10/Materials | Build established: Mutant 355 | -10/Materials | Core integrity fell below 50% 516 | -10/Materials | Discovered new exit (range 16) 534 | -10/Materials | Entered another Materials area 534 | -9/Materials | Evolved 2 slots: Propulsion x2 1004 | -9/Materials | Lost 4 parts (1p1n1u1w) 1114 | -9/Materials | Destroyed 8 combat bots 1240 | -9/Materials | Discovered new exit (range 7) 1517 | -9/Materials | Discovered new exit (range 8) 1526 | -9/Materials | Entered Mines 1527 | -9/Mines | Assembled infested the area 1532 | -9/Mines | Assisted by a Guerilla fighting off Assembled 1536 | -9/Mines | Learned Materials stockpile data 1569 | -9/Mines | Core integrity fell below 50% 1590 | -9/Mines | Core integrity fell below 20% 1607 | -9/Mines | Destroyed by S-10 Pest with Light Assault Rifle Last Messages --------------- 01585_ as-79978 destroyed. 01585_ as-22689 destroyed. 01585_ as-45277 destroyed. 01586_ U-05 Engineer builds a Wall. 01586_ as-63285 destroyed. 01586_ as-69712 destroyed. 01586_ as-33435 destroyed. 01586_ as-35275 destroyed. 01587_ Dropped Cld. Ion Engine. 01588_ Dropped Imp. Heat Sink. 01588_ as-99240 destroyed. 01588_ Dropped Hpw. Shotgun. 01589_ as-56069 destroyed. 01591_ The unstable cave ceiling collapses. 01593_ as-71690 destroyed. 01596_ The unstable cave ceiling collapses. 01598_ as-29130 destroyed. 01601_ Kicked S-10 Pest. 01602_ Kicked S-10 Pest out of the way. 01605_ System corrupted: Energy discharge (-34). Map ----- +----------------------------------------------------+ | ??????????????????## ##????????????????????????? | | ???????????????????# ##?????????????????????????? | | ???????????????????# #??????????????????????????? | | ?????????????????### #??????????????????????????? | | ??????????????#### # #??????????????????????????? | | ?????????????## ?????????????????????????? | | ????????????## ?????????????????????????? | | ???????????## ?????????????????????????? | | ???????????# ?????????????????????????? | | ????????????# #????????????????????????? | | ???????????## #????????????????????????? | | ???????????# #????????????????????????? | | ???????????# #????????????????????????? | | ??????????## #????????????????????????? | | ??????????# #????????????????????????? | | ??????????#!!] # #????????????????????????? | | ??????????# ! ##????????????????????????? | | ??????????##]* #?????????????????????????? | | ??????? ####### #?????????????????????????? | | ???????#### ??????# #?????????????????????????? | | ????????# ??????# #?????????????????????????? | | ????????## #??????# #?????????????????????????? | | ?????????## %???????# #?????????????????????????? | | ????????? # * ##### ####??????????????????????? | | ????????## ??# s s #??????????????????????? | | ?????????# # """@#??????????????????????? | | ??????????? ????# """ #??????????????????????? | | ?????????????????# %""" #??????????????????????? | | ?????????????????# #??????????????????????? | | ?????????????????# """ #??????????????????????? | | ?????????????????# """ #??????????????????????? | | ?????????????????# """ #??????????????????????? | | ?????????????????# ? #??????????????????????? | | ?????????????????#####?####??????????????????????? | | ?????????????????????????????????????????????????? | | ?????????????????????????????????????????????????? | | ?????????????????????????????????????????????????? | | ?????????????????????????????????????????????????? | | ?????????????????????????????????????????????????? | | ?????????????????????????????????????????????????? | | ?????????????????????????????????????????????????? | | ?????????????????????????????????????????????????? | | ?????????????????????????????????????????????????? | | ?????????????????????????????????????????????????? | | ?????????????????????????????????????????????????? | | ?????????????????????????????????????????????????? | | ?????????????????????????????????????????????????? | | ?????????????????????????????????????????????????? | | ?????????????????????????????????????????????????? | | ?????????????????????????????????????????????????? | +----------------------------------------------------+ Best States ------------- Heat Dissipation 42 Energy Generation 14 Energy Capacity 280 Matter Stores 300 Matter Capacity 300 Sight Range 16 Terrain Scan Density 10 Evasion (%) 55 Targeting Accuracy 5 Item Schematics ----------------- Hacking Suite | -9/Materials | Scanalyzed Robot Schematics ------------------ None Fabricated ------------ Nothing Alien Tech Used ----------------- None Achievements -------------- None Challenges ------------ None Game ------ Seed MyomerBarrageCoupler Manual? 0 Play Time 00:27:37 Cumulative 52.4 hours Start 2023.08.20 @ 09:04:05 End 2023.08.20 @ 09:56:07 Sessions 1 Manual Loads 0 Difficulty Rogue Special Mode None Game No. 69 Rogue 53 Adventurer 9 Explorer 7 Win Type - Total 4 Types 4/0/0/0/0/0/0/0/0 Lore% 13 Gallery% 39 Achievement% 28 Wizard Run 0 Options --------- ASCII 0 Keyboard 0 Movement Mouse Keybinds 0 Fullscreen 1 Font 32/Terminus Map View 63x52 Tactical HUD 1 Map Filters NONE Filters NONE Steam 1 RUN: 57bc2355-83c1-4346-bd77-812148750a1c